bitfinex-derivatives/quotes_ETHF0:USTF0_20250926
["timestamp","ask_amount","ask_price","bid_price","bid_amount"]
[1758875830102,1.27947,3937.1,3937.0,2.66659196]
[1758875830509,1.27947,3937.1,3937.0,2.40759196]
[1758875830711,1.27947,3937.1,3937.0,2.66659196]
[1758875832412,1.27951,3936.8,3936.7,2.17869196]
[1758875832614,1.27951,3936.8,3936.7,2.43769196]
[1758875833410,1.87196056,3936.8,3936.7,2.66659196]
[1758875834017,1.87196056,3936.8,3936.7,2.40759196]
[1758875834213,0.59245056,3936.8,3936.7,3.25829196]
[1758875834420,0.59245056,3936.8,3936.7,3.71511196]
[1758875834814,0.59245056,3936.8,3936.7,8.71511196]
[1758875837018,0.45678,3937.1,3937.0,0.9596]
[1758875837214,0.45678,3937.1,3937.0,3.39729196]
[1758875837415,1.03601021,3937.1,3937.0,3.39729196]
[1758875838617,1.62651021,3937.1,3937.0,3.39729196]
[1758875838819,1.85871021,3937.1,3937.0,3.25829196]
[1758875839018,1.85871021,3937.1,3937.0,2.99929196]
[1758875839213,1.85871021,3937.1,3937.0,2.17869196]
[1758875839428,0.81712,3936.7,3936.6,39.973]
[1758875839614,1.39635021,3936.7,3936.6,40.232]
[1758875840620,1.85875021,3936.7,3936.6,0.8206]
[1758875840812,1.85875021,3936.7,3936.6,0.259]
[1758875841521,1.85875021,3936.7,3936.6,0.4879]
[1758875841721,1.85875021,3936.7,3936.6,2.66659196]
[1758875842517,1.85875021,3936.7,3936.6,2.17869196]
[1758875842819,1.85875021,3936.7,3936.6,2.66659196]
[1758875843016,1.85875021,3936.7,3936.6,3.25829196]
[1758875843523,1.85875021,3936.7,3936.6,2.90129196]
[1758875843725,1.85875021,3936.7,3936.6,2.43769196]
[1758875844422,1.85875021,3936.7,3936.6,3.25829196]
[1758875845119,1.85875021,3936.7,3936.6,1.0796]
[1758875845320,1.85875021,3936.7,3936.6,0.7226]
[1758875845516,1.85875021,3936.7,3936.6,1.0796]
[1758875845910,1.85875021,3936.7,3936.6,0.7226]
[1758875846327,1.06094,3936.5,3936.4,2.40759196]
[1758875846625,2.00047021,3936.5,3936.4,3.25829196]
[1758875846822,1.85877021,3936.5,3936.4,3.25829196]
[1758875848824,2.00047021,3936.5,3936.4,3.25829196]
[1758875849019,0.57923021,3936.5,3936.4,5.43698392]
[1758875849225,1.03607021,3936.5,3936.4,5.43698392]
[1758875849430,0.3603,3937.3,3936.4,10.43698392]
[1758875849728,1.27945,3937.3,3937.2,2.17869196]
[1758875850120,1.28353,3937.5,3936.6,0.357]
[1758875850121,0.9644,3937.0,3936.9,2.17869196]
[1758875850519,0.45686,3936.4,3936.3,0.8236]
[1758875850722,1.0493,3936.9,3936.8,0.477]
[1758875850924,0.4568,3936.9,3936.8,1.0826]
[1758875851723,0.4568,3936.9,3936.8,3.26129196]
[1758875852632,1.2727,3936.9,3936.8,3.26129196]
[1758875855336,0.4642,3936.6,3936.5,2.17869196]
[1758875855532,1.27273,3936.6,3936.5,2.43769196]
[1758875855738,1.27279,3936.1,3936.0,2.65569196]
[1758875855940,1.27279,3936.1,3936.0,3.26129196]
[1758875856327,0.45689,3936.1,3936.0,3.39949196]
[1758875856732,1.30638,3937.0,3936.3,0.477]
[1758875857040,0.48219,3937.0,3936.9,3.00229196]
[1758875857240,0.48219,3937.0,3936.9,3.26129196]
[1758875857441,1.07469,3937.0,3936.9,1.0826]
[1758875857641,1.43709,3937.0,3936.9,2.91469196]
[1758875858041,1.29809,3937.0,3936.9,3.26129196]
[1758875860946,1.43709,3937.0,3936.9,2.91469196]
[1758875861747,2.00178692,3937.0,3936.9,2.91469196]
[1758875861938,1.27272,3936.7,3936.6,2.76269196]
[1758875862141,1.83741692,3936.7,3936.6,2.67509196]
[1758875863146,1.83741692,3936.7,3936.6,3.02169196]
[1758875863649,1.83741692,3936.7,3936.6,3.26129196]
[1758875865238,1.83741692,3936.7,3936.6,0.4964]
[1758875865447,1.27277,3936.3,3936.2,3.00229196]
[1758875865743,1.83746692,3936.3,3936.2,0.736]
[1758875865947,1.83746692,3936.3,3936.2,0.4964]
[1758875866139,0.4569,3936.0,3935.9,2.52529196]
[1758875866336,1.83749692,3936.0,3935.9,2.76269196]
[1758875866541,1.97649692,3936.0,3935.9,0.2374]
[1758875866741,1.97649692,3936.0,3935.9,0.4964]
[1758875867144,1.97649692,3936.0,3935.9,0.2374]
[1758875867439,1.97649692,3936.0,3935.9,1.0826]
[1758875868448,0.45692,3935.8,3935.7,0.04683904]
[1758875868645,1.27282,3935.8,3935.7,0.04683904]
[1758875868839,1.83751692,3935.8,3935.7,0.54323904]
[1758875869046,1.83751692,3935.8,3935.7,1.12943904]
[1758875870244,1.61411692,3935.8,3935.7,1.12943904]
[1758875870447,1.49376,3936.7,3936.3,0.3466]
[1758875870651,0.45685,3936.4,3936.3,0.8236]
[1758875870844,0.45685,3936.4,3936.3,1.0826]
[1758875871147,0.8413,3937.0,3936.9,0.8236]
[1758875871338,0.0254,3937.0,3936.9,1.0826]
[1758875871848,0.0254,3937.0,3936.9,3.64981422]
[1758875872440,1.04916,3938.1,3938.0,0.8236]
[1758875872636,1.04916,3938.1,3938.0,3.64981422]
[1758875872938,0.69746,3938.1,3938.0,3.64981422]
[1758875873342,1.04916,3938.1,3938.0,3.64981422]
[1758875873553,1.27256,3938.1,3938.0,3.64981422]
[1758875873937,1.27256,3938.1,3938.0,3.39081422]
[1758875874143,1.27256,3938.1,3938.0,3.64981422]
[1758875874544,1.27256,3938.1,3938.0,1.0826]
[1758875875047,0.139,3938.5,3937.5,0.8236]
[1758875875048,1.04921,3937.6,3937.5,0.8236]
[1758875875251,1.04921,3937.6,3937.5,1.0826]
[1758875875553,1.04921,3937.6,3937.5,0.8236]
[1758875875753,1.04921,3937.6,3937.5,1.0826]
[1758875876053,1.27261,3937.6,3937.5,1.0826]
[1758875876439,1.27261,3937.6,3937.5,0.8236]
[1758875876749,0.8159,3937.2,3937.1,0.8236]
[1758875877051,0.8159,3937.2,3937.1,1.0826]
[1758875878550,1.14179,3937.7,3937.1,0.736]
[1758875878551,0.3517,3937.7,3937.1,0.736]
[1758875878748,0.4567,3937.7,3937.6,0.477]
[1758875878947,0.4567,3937.7,3937.6,1.0826]
[1758875879250,0.3517,3938.4,3937.8,0.3466]
[1758875879452,0.45668,3938.0,3937.9,0.736]
[1758875879753,0.45668,3938.0,3937.9,1.0826]
[1758875879941,0.69748,3938.0,3937.9,1.0826]
[1758875880943,0.45668,3938.0,3937.9,1.0826]
[1758875882356,1.02152471,3938.0,3937.9,1.0826]
[1758875882949,1.61332471,3938.0,3937.9,1.0826]
[1758875883152,1.83762471,3938.0,3937.9,1.0826]
[1758875885956,1.02151471,3938.0,3937.9,1.0826]
[1758875886345,1.57521471,3938.0,3937.9,1.0826]
[1758875886545,1.79711471,3938.0,3937.9,1.0826]
[1758875888759,1.37043,3937.5,3937.4,0.4626]
[1758875888951,1.93527471,3937.5,3937.4,0.259]
[1758875890358,1.93527471,3937.5,3936.5,0.1382]
[1758875890359,0.79283,3936.6,3936.5,39.613]
[1758875890563,1.35767471,3936.6,3936.5,39.872]
[1758875891348,0.90084471,3936.6,3936.5,40.2219]
[1758875891548,0.90084471,3936.6,3936.5,39.872]
[1758875891961,0.56484471,3936.6,3936.5,40.2219]
[1758875892158,0.56484471,3936.6,3936.5,40.3535]
[1758875892459,0.90084471,3936.6,3936.5,39.872]
[1758875893656,0.4741,3936.5,3935.7,0.04683904]
[1758875893853,1.23252,3935.8,3935.7,0.85933904]
[1758875894250,1.23252,3935.8,3935.7,1.11833904]
[1758875896364,1.23252,3935.8,3935.7,0.76843904]
[1758875897563,1.23252,3935.8,3935.7,1.11833904]
[1758875897962,0.1381,3936.5,3935.7,1.11833904]
[1758875897963,0.336,3936.4,3935.7,1.11833904]
[1758875898165,1.01970183,3936.3,3936.2,0.8125]
[1758875898459,0.45687,3936.3,3936.2,1.0715]
[1758875899061,0.45684,3936.5,3936.4,0.4626]
[1758875899368,1.01966022,3936.5,3936.4,1.0715]
[1758875899663,0.56282022,3936.5,3936.4,1.0715]
[1758875899858,0.45682,3936.7,3936.6,0.8125]
[1758875900059,1.01877871,3936.7,3936.6,0.8125]
[1758875900260,1.57247871,3936.7,3936.6,1.0715]
[1758875900561,0.56195871,3936.7,3936.6,1.52833]
[1758875900763,0.4741,3937.5,3936.8,0.3499]
[1758875900963,0.5537,3937.5,3937.4,0.8125]
[1758875901167,0.67443,3937.5,3937.4,1.0715]
[1758875901363,1.23645471,3937.5,3937.4,1.0715]
[1758875901861,1.57245471,3937.5,3937.4,1.0715]
[1758875902259,0.56202471,3937.5,3937.4,1.0715]
[1758875902561,1.01041,3937.7,3937.6,0.8125]
[1758875902756,0.4396,3937.3,3937.2,0.5767]
[1758875902966,0.7756,3937.3,3937.2,1.0715]
[1758875903263,1.33759278,3937.3,3937.2,0.8125]
[1758875903562,0.7756,3936.9,3936.8,0.2268]
[1758875903759,0.7756,3936.9,3936.8,0.4858]
[1758875903970,1.33773511,3936.9,3936.8,0.4858]
[1758875907057,1.33773511,3936.9,3936.5,0.4626]
[1758875907058,1.23243,3936.6,3936.5,0.4626]
[1758875907265,1.79456511,3936.6,3936.5,0.4858]
[1758875907567,1.79456511,3936.6,3936.5,1.0715]
[1758875908463,0.45678,3937.0,3936.9,0.4626]
[1758875908658,0.56221722,3937.0,3936.9,1.0715]
[1758875908860,2.94712018,3938.1,3937.0,0.58838]
[1758875908861,0.336,3937.7,3937.0,0.58838]
[1758875909071,1.0104,3937.7,3937.6,0.8125]
[1758875909368,1.0104,3937.7,3937.6,1.0715]
[1758875909369,1.57255488,3937.7,3937.6,1.0715]
[1758875909566,1.79445488,3937.7,3937.6,1.0715]
[1758875910364,1.79445488,3937.7,3937.6,0.7216]
[1758875910569,1.28665,3937.3,3937.2,0.2379]
[1758875910757,1.84880488,3937.3,3937.2,0.4969]
[1758875910961,1.84880488,3937.3,3937.2,0.259]
[1758875911265,0.241,3937.1,3937.0,0.2379]
[1758875911463,1.28667,3937.1,3937.0,0.4969]
[1758875911763,1.84897215,3937.1,3937.0,0.4969]
[1758875911970,1.28671,3936.8,3936.7,0.2379]
[1758875912166,1.28671,3936.8,3936.7,1.067]
[1758875912469,1.84910087,3936.8,3936.7,1.067]
[1758875912872,0.79839087,3936.8,3936.7,1.067]
[1758875913064,1.84910087,3936.8,3936.7,0.733]
[1758875913565,1.84910087,3936.8,3936.7,1.067]
[1758875914079,1.84910087,3936.8,3936.7,0.259]
[1758875914562,1.84910087,3936.8,3936.4,39.619]
[1758875914563,0.241,3936.5,3936.4,0.474]
[1758875914763,0.241,3936.5,3936.4,0.733]
[1758875914764,1.84599607,3936.5,3936.4,0.733]
[1758875915066,1.98809607,3936.5,3936.4,0.4969]
[1758875916368,1.98809607,3936.5,3936.4,0.259]
[1758875916974,0.45688,3936.2,3936.1,0.334]
[1758875917274,1.15315607,3936.2,3936.1,1.067]
[1758875917570,0.45683,3936.6,3936.5,0.9477]
[1758875917768,0.45683,3936.6,3936.5,1.2067]
[1758875917962,1.01884064,3936.6,3936.5,1.2067]
[1758875918363,1.25484064,3936.6,3936.5,1.2067]
[1758875919074,1.60774064,3936.6,3936.5,1.2067]
[1758875919473,1.25484064,3936.6,3936.5,1.2067]
[1758875920475,1.25484064,3936.6,3936.5,1.067]
[1758875920476,1.84874064,3936.6,3936.5,1.067]
[1758875921673,1.39191064,3936.6,3936.5,1.067]
[1758875922169,1.39191064,3936.6,3936.5,1.52384]
[1758875922370,0.56201064,3936.6,3936.5,6.66354]
[1758875922570,0.45677,3937.1,3937.0,0.808]
[1758875922772,0.69277,3937.1,3937.0,1.067]
[1758875923075,1.60784162,3937.1,3937.0,1.067]
[1758875923771,1.84884162,3937.1,3937.0,1.067]
[1758875924168,1.84884162,3937.1,3937.0,0.733]
[1758875924564,0.45681,3936.8,3936.7,0.334]
[1758875924771,1.28671,3936.8,3936.7,0.4969]
[1758875924965,1.84888162,3936.8,3936.7,0.733]
[1758875925173,1.84888162,3936.8,3936.7,0.2379]
[1758875925477,1.28673,3936.6,3936.5,0.2379]
[1758875925680,1.84890162,3936.6,3936.5,0.733]
[1758875926276,1.39207162,3936.6,3936.5,1.067]
[1758875926478,1.84890162,3936.6,3936.5,1.067]
[1758875928377,1.84890162,3936.6,3936.5,0.733]
[1758875928773,1.84890162,3936.6,3936.5,0.474]
[1758875928981,1.84890162,3936.6,3936.5,0.4969]
[1758875929174,1.84890162,3936.6,3936.5,0.259]
[1758875929679,1.84890162,3936.6,3936.5,0.4969]
[1758875929870,0.56217162,3936.6,3936.5,1.66354]
[1758875930071,0.0254,3937.0,3936.9,1.2648]
[1758875930265,0.0254,3937.0,3936.9,9.27083275]
[1758875930477,0.45671,3937.7,3937.5,0.474]
[1758875930779,0.56278828,3937.6,3937.5,9.15146275]
[1758875930977,0.56278828,3937.6,3937.5,9.41046275]
[1758875931481,1.01949828,3937.6,3937.5,8.95373275]
[1758875932280,0.56278828,3937.6,3937.5,9.41046275]
[1758875932876,1.01949828,3937.6,3937.5,8.95373275]
[1758875933183,0.56278828,3937.6,3937.5,9.41046275]
[1758875933478,0.56278828,3937.6,3937.5,8.55503275]
[1758875933479,1.60839828,3937.6,3937.5,8.55503275]
[1758875933677,1.84939828,3937.6,3937.5,48.43103275]
[1758875933985,1.84939828,3937.6,3937.5,40.1139]
[1758875934379,1.84939828,3937.6,3937.5,39.876]
[1758875934581,1.84939828,3937.6,3937.1,8.08103275]
[1758875934582,1.28666,3937.2,3937.1,48.17103275]
[1758875934882,1.85768372,3937.2,3937.1,8.48003275]
[1758875936672,0.9338,3936.9,3936.8,0.808]
[1758875936881,1.85772372,3936.9,3936.8,0.733]
[1758875937281,1.85772372,3936.9,3936.8,0.4969]
[1758875937582,1.85772372,3936.9,3936.8,0.733]
[1758875937784,1.85772372,3936.9,3936.8,1.067]
[1758875938079,1.85772372,3936.9,3936.8,0.2379]
[1758875938280,1.85772372,3936.9,3936.4,0.808]
[1758875938281,1.28674,3936.5,3936.4,0.808]
[1758875938478,1.99986372,3936.5,3936.4,0.474]
[1758875938786,1.99986372,3936.5,3936.4,0.733]
[1758875939573,1.85776372,3936.5,3936.4,0.733]
[1758875939884,1.99986372,3936.5,3936.4,0.2379]
[1758875940079,1.99986372,3936.5,3936.4,0.259]
[1758875940282,1.99986372,3936.5,3936.0,0.334]
[1758875940283,0.234,3936.3,3936.0,39.616]
[1758875940475,1.01059,3936.1,3936.0,39.616]
[1758875940677,1.58161372,3936.1,3936.0,39.875]
[1758875940873,0.68231,3935.9,3935.8,7.97933275]
[1758875941079,1.80703372,3935.9,3935.8,8.79923275]
[1758875941278,1.80703372,3935.9,3935.8,8.45603275]
[1758875942379,1.80703372,3935.9,3935.8,8.79923275]
[1758875942578,0.57102372,3935.9,3935.8,9.25615275]
[1758875942786,0.45688,3936.2,3936.1,0.7932]
[1758875942987,1.80699591,3936.2,3936.1,8.45603275]
[1758875943184,1.80699591,3936.2,3936.1,8.23833275]
[1758875943773,0.45691,3935.9,3935.8,0.3432]
[1758875943979,1.23601,3935.9,3935.8,40.328]
[1758875944286,1.80348384,3935.9,3935.8,40.328]
[1758875945188,1.34657384,3935.9,3935.8,40.667]
[1758875945387,0.79287384,3935.9,3935.8,40.667]
[1758875945587,0.56747384,3935.9,3935.8,40.667]
[1758875945787,1.02438384,3935.9,3935.8,40.667]
[1758875946089,1.35868384,3935.9,3935.8,40.667]
[1758875947680,1.79858384,3935.9,3935.8,0.45]
[1758875947875,0.79123,3935.7,3935.6,39.621]
[1758875948084,0.79123,3935.7,3935.3,7.74703275]
[1758875948085,1.23117,3935.4,3935.3,7.96893275]
[1758875948277,1.23117,3935.4,3935.3,8.45023275]
[1758875948485,0.45697,3935.4,3935.3,8.78923275]
[1758875948682,0.45696,3935.5,3935.4,0.339]
[1758875948880,0.45696,3935.5,3935.4,1.0422]
[1758875949485,0.5485,3935.9,3935.8,0.7832]
[1758875949684,0.5485,3935.9,3935.8,0.4809]
[1758875949685,1.79880581,3935.9,3935.8,0.4809]
[1758875950080,1.02460581,3935.9,3935.8,1.0422]
[1758875950284,0.56769581,3935.9,3935.8,1.0422]
[1758875950485,0.4569,3936.0,3935.9,0.7832]
[1758875950681,0.4569,3936.0,3935.9,1.0422]
[1758875950885,1.02441287,3936.0,3935.9,1.0422]
[1758875951087,1.23861287,3936.0,3935.9,1.0422]
[1758875951291,1.57291287,3936.0,3935.9,1.0422]
[1758875952592,1.79861287,3936.0,3935.9,1.0422]
[1758875955887,1.79861287,3936.0,3935.9,0.7832]
[1758875956186,1.79861287,3936.0,3935.9,1.0422]
[1758875957894,1.92811287,3936.0,3935.9,1.0422]
[1758875958690,0.1295,3935.5,3935.4,0.2219]
[1758875958890,1.36066,3935.5,3935.4,2.5205351]
[1758875959595,1.36066,3935.5,3935.4,3.0818351]
[1758875959786,1.36066,3935.5,3935.4,2.7428351]
[1758875961298,1.36066,3935.5,3935.4,2.8838351]
[1758875961593,1.92575184,3935.5,3935.4,2.8838351]
[1758875961794,1.92575184,3935.5,3935.4,2.4025351]
[1758875962096,1.92575184,3935.5,3935.4,2.6615351]
[1758875962889,1.92575184,3935.5,3935.4,2.4025351]
[1758875963095,1.92575184,3935.5,3935.4,2.6615351]
[1758875963593,1.92575184,3935.5,3935.4,3.2228351]
[1758875964391,1.33929184,3935.5,3935.4,3.2228351]
[1758875964591,0.56509184,3935.5,3935.4,3.2228351]
[1758875964895,1.14217,3936.3,3935.4,3.2228351]
[1758875964896,0.1421,3936.5,3936.0,0.579]
[1758875965090,1.14744,3936.5,3936.4,2.9638351]
[1758875965390,1.37314,3936.5,3936.4,2.6615351]
[1758875965990,1.37314,3936.5,3936.4,2.4396351]
[1758875966798,1.37314,3936.5,3936.4,2.6615351]
[1758875967197,1.37314,3936.5,3936.4,2.8838351]
[1758875967391,1.23104,3936.5,3936.4,5.4034702]
[1758875967998,1.36054,3936.5,3936.4,2.6615351]
[1758875968790,1.36054,3936.5,3936.4,2.4396351]
[1758875969098,1.23111,3935.9,3935.8,0.7832]
[1758875969301,1.23111,3935.9,3935.8,1.0422]
[1758875970397,0.227,3936.5,3936.4,0.2168]
[1758875970592,0.227,3936.5,3936.4,3.1946351]
[1758875971100,0.68384,3936.5,3936.4,3.1946351]
[1758875971302,0.89754,3936.5,3936.4,1.014]
[1758875971600,0.68384,3936.5,3936.4,5.3752702]
[1758875971801,1.30949,3937.0,3936.4,5.3752702]
[1758875971802,0.70918,3937.0,3936.9,0.755]
[1758875972098,0.68378,3937.0,3936.9,1.014]
[1758875972601,1.21508,3937.0,3936.9,1.014]
[1758875973701,1.21508,3937.0,3936.7,2.1806351]
[1758875973702,1.21513,3936.6,3936.5,0.3495]
[1758875973902,0.45682,3936.7,3936.5,0.8334]
[1758875974097,0.45683,3936.6,3936.5,0.8334]
[1758875974297,0.45683,3936.6,3936.5,1.1467]
[1758875974697,0.68383,3936.6,3936.5,1.1467]
[1758875976903,1.24666055,3936.6,3936.5,1.1467]
[1758875977203,1.01966055,3936.6,3936.5,1.1467]
[1758875978504,0.56283055,3936.6,3936.5,1.1467]
[1758875978696,1.01966055,3936.6,3936.5,1.1467]
[1758875981997,1.24666055,3936.6,3936.5,1.1467]
[1758875988202,0.56283055,3936.6,3936.5,1.60354]
[1758875988707,0.0254,3937.0,3936.9,1.2118]
[1758875988908,0.45675,3937.4,3937.3,0.4417]
[1758875989103,1.21498,3937.9,3937.8,0.755]
[1758875989413,1.21498,3937.9,3937.8,0.259]
[1758875990110,0.4567,3937.7,3937.6,2.56410645]
[1758875990408,1.215,3937.7,3937.6,2.56410645]
[1758875990611,1.21505,3937.3,3937.2,0.5301]
[1758875991007,1.21505,3937.3,3937.2,0.7891]
[1758875991513,1.21505,3937.3,3937.2,1.014]
[1758875991811,0.45675,3937.3,3937.2,3.57810645]
[1758875992012,0.68375,3937.3,3937.2,3.57810645]
[1758875993116,0.45675,3937.3,3937.2,3.57810645]
[1758875993306,1.21505,3937.3,3937.2,3.57810645]
[1758875994815,0.89745,3937.3,3937.2,3.57810645]
[1758875995914,1.21505,3937.3,3937.2,3.57810645]
[1758875996915,0.7583,3937.1,3937.0,0.5301]
[1758875997110,0.7583,3937.1,3937.0,3.35320645]
[1758875997512,1.21507,3937.1,3937.0,3.35320645]
[1758875998614,0.45677,3937.1,3937.0,3.71080645]
[1758876000317,0.68759,3937.8,3937.7,0.4404]
[1758876000506,0.55624067,3937.8,3937.7,3.59110645]
[1758876000711,1.01293067,3937.8,3937.7,3.59110645]
[1758876000907,1.24383067,3937.8,3937.7,3.59110645]
[1758876001107,1.45653067,3937.8,3937.7,3.59110645]
[1758876001419,1.45653067,3937.8,3937.7,3.33210645]
[1758876001722,1.45653067,3937.8,3937.0,0.1327]
[1758876001723,0.68766,3937.2,3937.1,3.00450645]
[1758876002019,1.77550067,3937.2,3937.1,3.59110645]
[1758876003916,1.77550067,3937.2,3937.1,0.8173]
[1758876004619,1.77550067,3937.2,3937.1,1.027]
[1758876007419,0.45683,3936.6,3936.5,0.1327]
[1758876007718,0.55624067,3936.6,3936.5,3.28000645]
[1758876008218,0.55624067,3936.6,3936.5,4.07585645]
[1758876008918,0.55624067,3936.6,3936.5,3.61900645]
[1758876009226,0.55624067,3936.6,3936.5,4.07585645]
[1758876009522,1.01307067,3936.6,3936.5,3.61900645]
[1758876010109,1.22817067,3936.6,3936.5,3.61900645]
[1758876010322,1.01307067,3936.6,3936.5,3.61900645]
[1758876013517,1.01307067,3936.6,3936.5,3.72900645]
[1758876013827,0.55624067,3936.6,3936.5,4.18585645]
[1758876014329,0.45672,3937.6,3937.5,0.9057]
[1758876014522,0.45672,3937.6,3937.5,1.1647]
[1758876014822,0.67182,3937.6,3937.5,1.1647]
[1758876015224,0.90202,3937.6,3937.5,1.1647]
[1758876015426,1.22472,3937.6,3937.5,1.1647]
[1758876016828,1.22475,3937.3,3937.2,3.12060645]
[1758876017021,1.22475,3937.3,3937.2,3.37960645]
[1758876017221,1.22475,3937.3,3937.2,3.59630645]
[1758876017418,0.45675,3937.3,3937.2,3.25730645]
[1758876017625,0.45674,3937.5,3937.4,0.7732]
[1758876017818,0.45674,3937.5,3937.4,1.0322]
[1758876019822,0.67184,3937.5,3937.4,1.0322]
[1758876020124,1.22474,3937.5,3937.4,1.0322]
[1758876021428,1.22474,3937.5,3937.4,0.8155]
[1758876022319,1.22474,3937.5,3937.4,1.0322]
[1758876024430,0.90204,3937.5,3937.4,1.0322]
[1758876025120,0.67184,3937.5,3937.4,1.0322]
[1758876026336,0.0253,3938.0,3937.5,1.27432]
[1758876026624,0.45665,3938.2,3938.0,0.1325]
[1758876026831,0.45664,3938.3,3938.1,3.59630645]
[1758876027126,0.2151,3938.6,3938.5,0.7732]
[1758876027330,0.99437,3938.9,3938.8,0.4342]
[1758876027633,0.99437,3938.9,3938.8,3.59630645]
[1758876027926,1.22457,3938.9,3938.8,3.25730645]
[1758876028129,1.22457,3938.9,3938.8,2.99830645]
[1758876028422,1.22457,3938.9,3938.8,3.25730645]
[1758876028827,1.22457,3938.9,3938.8,3.59630645]
[1758876030729,0.768,3938.9,3938.8,3.59630645]
[1758876030928,0.82681,3939.4,3939.3,0.4334]
[1758876031227,0.0253,3939.4,3939.3,3.58330645]
[1758876032531,0.2156,3939.7,3939.6,0.7602]
[1758876032731,0.45647,3939.8,3939.6,3.58330645]
[1758876033031,0.67207,3939.8,3939.7,0.7602]
[1758876033233,1.01707,3939.8,3939.7,0.7602]
[1758876033536,0.2156,3939.8,3939.7,0.7602]
[1758876033730,0.59308,3940.5,3940.4,0.2187]
[1758876033936,1.01778,3940.5,3940.4,0.4777]
[1758876034235,1.01778,3940.5,3939.4,0.45649]
[1758876034236,0.45649,3939.5,3939.4,2.56410645]
[1758876034434,1.35999,3939.5,3939.4,3.04180645]
[1758876034731,1.35999,3939.5,3939.4,3.32430645]
[1758876034926,1.35999,3939.5,3939.4,0.259]
[1758876035630,1.22619,3939.5,3939.4,3.58330645]
[1758876037025,1.35999,3939.5,3939.4,3.58230645]
[1758876037225,1.35999,3939.5,3939.4,3.25550645]
[1758876038433,1.35999,3939.5,3939.4,3.58230645]
[1758876040335,1.22619,3939.5,3939.4,3.58230645]
[1758876043434,1.35999,3939.5,3939.4,0.258]
[1758876043840,1.35999,3939.5,3939.4,0.4767]
[1758876045238,0.45649,3939.5,3939.4,3.58230645]
[1758876045642,1.35999,3939.5,3939.4,3.25550645]
[1758876045844,1.01718,3938.8,3938.7,0.7602]
[1758876046139,0.45661,3938.6,3938.5,2.56410645]
[1758876046343,0.45661,3938.6,3938.5,3.04080645]
[1758876046344,1.22631,3938.6,3938.5,3.04080645]
[1758876046732,0.345,3938.4,3938.2,0.2187]
[1758876046936,1.27536,3938.5,3937.9,42.48790645]
[1758876046937,0.345,3938.0,3937.9,42.48790645]
[1758876047137,1.36012,3938.5,3938.4,0.2187]
[1758876047340,1.36012,3938.5,3938.4,0.4767]
[1758876048035,1.36012,3938.5,3938.4,0.258]
[1758876048235,6.02237496,3938.5,3938.4,0.258]
[1758876048437,1.90369496,3938.5,3938.4,1.0182]
[1758876048638,1.90369496,3938.5,3938.4,0.2187]
[1758876048837,1.90369496,3938.5,3938.4,0.258]
[1758876051239,1.10207496,3938.5,3938.4,2.43643862]
[1758876051543,1.10207496,3938.5,3938.4,2.65513862]
[1758876051838,1.90369496,3938.5,3938.4,2.43643862]
[1758876054549,1.90369496,3938.5,3938.4,0.258]
[1758876055641,1.90369496,3938.5,3938.4,2.65513862]
[1758876055837,1.90369496,3938.5,3938.4,3.19663862]
[1758876056032,1.90369496,3938.5,3938.4,2.65513862]
[1758876056239,1.90369496,3938.5,3938.4,2.43643862]
[1758876056643,1.90369496,3938.5,3938.4,2.65513862]
[1758876057038,1.90369496,3938.5,3938.4,3.19663862]
[1758876057239,1.76989496,3938.5,3938.4,3.19663862]
[1758876057742,1.76989496,3938.5,3938.4,8.19663862]
[1758876057743,0.54357496,3938.5,3938.4,8.19663862]
[1758876057950,0.45657,3939.0,3938.9,0.7602]
[1758876058245,0.45657,3939.0,3938.9,1.0182]
[1758876058445,1.00106643,3939.0,3938.9,1.0182]
[1758876058751,1.00105643,3939.0,3938.9,1.0182]
[1758876059445,1.21665643,3939.0,3938.9,1.0182]
[1758876059844,1.90455643,3939.0,3938.9,0.4334]
[1758876060055,1.90455643,3939.0,3938.9,0.4767]
[1758876060548,1.90455643,3939.0,3938.9,0.2187]
[1758876060748,1.90455643,3939.0,3938.9,0.4767]
[1758876060949,1.23877,3938.9,3938.8,2.17843862]
[1758876061141,1.78326643,3938.9,3938.8,2.43643862]
[1758876061337,0.76869643,3938.9,3938.8,3.20683862]
[1758876061543,0.54449643,3938.9,3938.8,3.20683862]
[1758876061748,1.00106643,3938.9,3938.8,3.20683862]
[1758876062351,1.55756643,3938.9,3938.8,3.20683862]
[1758876062546,1.78326643,3938.9,3938.8,0.2192]
[1758876062745,1.78326643,3938.9,3938.8,0.258]
[1758876064854,1.78326643,3938.9,3938.8,0.4772]
[1758876065955,1.78326643,3938.9,3938.8,0.258]
[1758876066145,1.21575,3938.3,3938.2,2.62453862]
[1758876066361,1.21575,3938.3,3937.9,2.40793862]
[1758876066362,1.35247,3938.0,3937.9,2.40793862]
[1758876066546,1.00732,3937.7,3937.6,0.2295]
[1758876066853,1.21582,3937.7,3937.6,2.66593862]
[1758876067050,1.21582,3937.7,3937.6,2.88253862]
[1758876067852,1.75614202,3937.7,3937.6,2.88253862]
[1758876068353,1.75614202,3937.7,3937.6,2.17843862]
[1758876068553,1.75614202,3937.7,3937.6,2.43643862]
[1758876070548,1.75614202,3937.7,3937.0,39.602]
[1758876070549,1.21588,3937.1,3937.0,2.40793862]
[1758876070752,1.75626856,3937.1,3937.0,2.43643862]
[1758876071147,0.54038856,3937.1,3937.0,3.21343862]
[1758876071353,0.79773,3937.6,3937.5,0.4461]
[1758876071545,1.33806538,3937.6,3937.5,3.21343862]
[1758876071744,0.54033538,3937.6,3937.5,3.21343862]
[1758876071953,0.54033538,3937.6,3937.5,1.035]
[1758876072550,1.75615538,3937.6,3937.5,1.035]
[1758876073749,1.75615538,3937.6,3937.5,0.7041]
[1758876074047,1.00631,3936.8,3936.7,0.777]
[1758876074250,1.00631,3936.8,3936.7,1.035]
[1758876074451,0.1367,3937.5,3937.4,0.2295]
[1758876074452,0.341,3937.5,3937.4,0.2295]
[1758876074649,0.341,3937.9,3937.7,0.3309]